Cogmind - Beta 14 @@@ ROGUE MODE // 2025.03.06 @ 22:14:20 Player: supa Result: Destroyed by D-53 Grenadier with Mini Grenade Launcher Performance ------------- Evolutions (0) 0 Regions Visited (2) 400 Robots Destroyed (13) 65 Value Destroyed (296) 296 Prototype IDs (3) 60 Alien Tech Used (0) 0 Bonus (0) 0 TOTAL SCORE: 821 Bonus ------- None Cogmind --------- Core Integrity 0/250 Matter 292/300 Energy 98/100 System Corruption 0% Temperature Cool (0) Movement Core (50) Location -10/Mines Parts ------- > --- POWER (1) -------- (None) > --- PROPULSION (2) --- (None) > --- UTILITY (2) ------ (None) > --- WEAPON (2) ------- (None) > --- INVENTORY (5) ---- Improved Ion Engine Improved Ion Engine Aluminum Leg Sensor Array Improved Light Cannon Peak State ------------ > --- POWER ------------ Light Ion Engine > --- PROPULSION ------- Compact Wheel Compact Wheel > --- UTILITY ---------- Signal Interpreter Weapon Shielding > --- WEAPON ----------- Improved Light Cannon Improved Light Cannon > --- INVENTORY -------- Improved Ion Engine Improved Ion Engine Aluminum Leg Sensor Array Improved Light Cannon [Rating: 9] Favorites ----------- Power Light Ion Engine Engine Light Ion Engine Propulsion Compact Wheel Treads Light Treads Wheel Compact Wheel Utility Signal Interpreter Device Structural Scanner Processor Signal Interpreter Protection Weapon Shielding Weapon Improved Light Cannon Energy Gun Small Laser Ballistic Cannon Improved Light Cannon Launcher Mini Grenade Launcher Build | -11 -10 -10 ------- Run | Yrd Mat Min Slots Evolved . | . . . Power . | . . . Propulsion . | . . . Utility . | . . . Weapon . | . . . Parts Attached 16 | 5 11 . Power 2 | 1 1 . Engine 2 | 1 1 . Core . | . . . Reactor . | . . . Propulsion 4 | 2 2 . Treads 2 | 2 . . Leg . | . . . Wheel 2 | . 2 . Hover . | . . . Flight . | . . . Utility 3 | . 3 . Device 1 | . 1 . Storage . | . . . Processor 1 | . 1 . Hackware . | . . . Protection 1 | . 1 . Artifact . | . . . Weapon 7 | 2 5 . Energy Gun 2 | 2 . . Energy Cannon . | . . . Ballistic Gun . | . . . Ballistic Cannon 4 | . 4 . Launcher 1 | . 1 . Special Weapon . | . . . Impact Weapon . | . . . Slashing Weapon . | . . . Piercing Weapon . | . . . Special Melee Weapon . | . . . Unidentified Prototypes . | . . . Parts Lost 3 | . 3 . Power 1 | . 1 . Propulsion 1 | . 1 . Utility . | . . . Weapon 1 | . 1 . Highest Loss Streak 2 | . 2 . To Critical Strikes . | . . . Average Slot Usage (%) 85 | . 84 100 Engine 11 | . 11 14 Treads 7 | . 8 . Wheel 18 | . 18 28 Device 3 | . 2 14 Processor 8 | . 8 14 Protection 7 | . 7 . Energy Gun 5 | . 6 . Ballistic Cannon 21 | . 20 28 Peak Build Rating 9 | 5 9 9 Average Rating 7 | 3 7 8 On Entrance 4 | . 5 9 Naked Turns 2 | . . 2 Heaviest Build 12 | 6 12 12 Greatest Support 40 | 40 40 32 Greatest Overweight (x) 3 | . 3 . Average Overweight (x) . | . . . Largest Inventory Capacity 5 | 5 5 5 Average Capacity 5 | 5 5 5 Most Carried 5 | 4 5 5 Average Carried 3 | 1 3 5 Final Capacity 5 | 5 5 5 Final Carried 5 | 1 5 5 Class Distribution -------------------- 100% | Mutant Dominant Class ---------------- Mutant | -10/Materials Mutant | -10/Mines Resources | -11 -10 -10 ----------- Run | Yrd Mat Min Matter Collected 511 | 235 236 40 Remotely . | . . . Salvage Created 350 | . 350 . Parts 28 | . 28 . Haulers Intercepted . | . . . Recyclers Shooed 1 | . 1 . Parts Field Recycled . | . . . Retrieved Matter . | . . . Parts Self-Destructed . | . . . Prevented . | . . . Kills | -11 -10 -10 ------- Run | Yrd Mat Min Combat Hostiles Destroyed 9 | . 9 . Guns 4 | . 4 . Cannons 5 | . 5 . Classes Destroyed 5 | . 5 . Worker 1 | . 1 . Recycler 1 | . 1 . Watcher 2 | . 2 . Swarmer 3 | . 3 . Grunt 6 | . 6 . Best Kill Streak 4 | . 4 . Combat Bots Only 3 | . 3 . Max Kills in Single Turn 1 | . 1 . Gunslinging . | . . . Exploded . | . . . Melee . | . . . Uniques/NPCs Destroyed . | . . . Combat | -11 -10 -10 -------- Run | Yrd Mat Min Hostile Shots Fired 76 | . 68 8 Missed 16 | . 14 2 Damage Taken 861 | . 547 314 Core 272 | . 109 163 Absorbed by Shields . | . . . Redirected to Shielding 9 | . 9 . Core Remaining (%) 100 | 100 . . Volleys Fired 53 | . 52 1 Largest 2 | . 2 2 Hottest 90 | . 90 78 Shots Fired 94 | . 92 2 Gun 52 | . 52 . Cannon 41 | . 39 2 Launcher 1 | . 1 . Special . | . . . Kinetic 41 | . 39 2 Thermal 52 | . 52 . Explosive 1 | . 1 . Electromagnetic . | . . . Robot Hit Streak 7 | . 7 1 Robot Miss Streak 7 | . 7 1 Penetration Max . | . . . Secondary Targets 1 | . 1 . Max Gunslinging Chain 1 | . 1 . Shots Hit Robots 49 | . 48 1 Core Hits 16 | . 16 . Critical Kills . | . . . Critical Parts Destroyed . | . . . Critical Strikes 3 | . 3 . Burn 3 | . 3 . Melee Attacks . | . . . Impact . | . . . Slashing . | . . . Piercing . | . . . Sneak Attacks . | . . . Combat Hostiles . | . . . Follow-up Attacks . | . . . Damage Inflicted 756 | . 727 29 Guns 390 | . 390 . Cannons 353 | . 324 29 Explosions 13 | . 13 . Melee . | . . . Ramming . | . . . Kinetic 353 | . 324 29 Thermal 390 | . 390 . Explosive 13 | . 13 . Electromagnetic . | . . . Impact . | . . . Slashing . | . . . Piercing . | . . . Highest Corruption . | . . . Average Corruption . | . . . Corruption Purged . | . . . Corruption Blocked . | . . . Overload Shots . | . . . Overflow Damage . | . . . Projectiles . | . . . Explosions . | . . . Melee . | . . . Knockbacks 4 | . 4 . Impact . | . . . Kinetic 4 | . 4 . Secondary . | . . . Self-Inflicted Damage . | . . . Shots . | . . . Rammed . | . . . Targets Rammed . | . . . Kicked . | . . . Crushed . | . . . Highest Temperature 461 | . 461 18 Average Temperature 166 | . 168 12 Received Heat Transfer 204 | . 204 . Effects 3 | . 3 . Energy Bleed 1 | . 1 . Short Circuit 1 | . 1 . Damage (minor) 1 | . 1 . Siege Activations . | . . . Robots Corrupted . | . . . Combat Hostiles . | . . . Parts Fried . | . . . Impact Corruptions . | . . . Robots Melted . | . . . Combat Hostiles . | . . . Parts Melted 2 | . 2 . Heat Transferred 1228 | . 1228 . Parts Sabotaged . | . . . Parts Stolen . | . . . Parts Stripped . | . . . Power Chain Reactions . | . . . Alert | -11 -10 -10 ------- Run | Yrd Mat Min Peak Influence 157 | . 157 32 Initial 17 | . . 17 Average 61 | . 70 17 Maximum Alert Level . | . . . Low Security (%) 100 | 100 100 100 Level 1 . | . . . Level 2 . | . . . Level 3 . | . . . Level 4 . | . . . Level 5 . | . . . High Security . | . . . Max Security . | . . . Squads Dispatched 3 | . 3 . Investigation 1 | . 1 . Extermination . | . . . Reinforcement 2 | . 2 . Assault . | . . . Garrison . | . . . Intercept . | . . . Searches Triggered . | . . . Construction Impeded . | . . . Haulers Reinforced . | . . . Active Scanning Responses . | . . . Cargo Convoy Interrupts . | . . . Stealth | -11 -10 -10 --------- Run | Yrd Mat Min Distress Signals 1 | . 1 . Communications Jammed . | . . . Distress Signals . | . . . Times Spotted 36 | . 18 18 Peak Tracking Total 18 | . 4 18 Tactical Retreats 2 | . 2 . Traps | -11 -10 -10 ------- Run | Yrd Mat Min Traps Triggered 1 | . 1 . Indirectly . | . . . Trap Hack Attempts . | . . . Triggered . | . . . Disarmed . | . . . Reprogrammed . | . . . Reused . | . . . Traps Extracted . | . . . Installed . | . . . Triggered . | . . . Machines | -11 -10 -10 ---------- Run | Yrd Mat Min Machines Disabled 2 | . 2 . Max in Single Turn 1 | . 1 . Machines Repaired . | . . . Machines Dismantled . | . . . Machines Sabotaged . | . . . Overloaded Fab Kills . | . . . Hacking | -11 -10 -10 --------- Run | Yrd Mat Min Machines Accessed 5 | . 5 . Terminals 4 | . 4 . Fabricators . | . . . Repair Stations . | . . . Recycling Units 1 | . 1 . Scanalyzers . | . . . Garrison Access . | . . . Total Hacks 12 | . 12 . Successful 6 | . 6 . Failed 6 | . 6 . Catastrophic . | . . . Database Lockouts . | . . . Manual 4 | . 4 . Terminals 9 | . 9 . Fabricators . | . . . Repair Stations . | . . . Recycling Units 3 | . 3 . Scanalyzers . | . . . Garrison Access . | . . . Terminal Hacks 4 | . 4 . Prototype ID Bank 2 | . 2 . Branch Access Points 1 | . 1 . Unreport Threat 1 | . 1 . Fabricator Hacks . | . . . Repair Station Hacks . | . . . Recycling Unit Hacks . | . . . Scanalyzer . | . . . Garrison Access Hacks . | . . . Unauthorized Hacks 2 | . 2 . Terminals 2 | . 2 . Track 1 | . 1 . Assimilate 1 | . 1 . Fabricators . | . . . Repair Stations . | . . . Recycling Units . | . . . Scanalyzers . | . . . Garrison Access . | . . . Data Cores Recovered . | . . . Used . | . . . Hacking Detections 4 | . 4 . Full Trace Events . | . . . Feedback Events . | . . . Feedback Blocked . | . . . Robot Schematics Acquired . | . . . Robots Built . | . . . Authchips . | . . . Time . | . . . Total Robot Build Rating . | . . . Part Schematics Acquired . | . . . Parts Built . | . . . Authchips . | . . . Time . | . . . Total Part Build Rating . | . . . Parts Repaired . | . . . Time . | . . . Parts Recycled . | . . . Recycled Matter . | . . . Retrieved Matter . | . . . Retrieved Components . | . . . Parts Scanalyzed . | . . . Part Schematics Acquired . | . . . Parts Damaged . | . . . Bothacking | -11 -10 -10 ------------ Run | Yrd Mat Min Used RIF Installer . | . . . Robots Hacked . | . . . Non-combat . | . . . Combat . | . . . Robot Hacks Applied . | . . . Relay Couplers Released . | . . . Fabnet Peak Effective % . | . . . Robots Rewired . | . . . Allies Hacked . | . . . Hacks Repelled . | . . . Allies | -11 -10 -10 -------- Run | Yrd Mat Min Total Allies . | . . . Largest Group . | . . . Highest-Rated Group . | . . . Highest-Rated Ally . | . . . Total Orders . | . . . Ally Attacks . | . . . Total Damage . | . . . Kills . | . . . Allies Corrupted . | . . . Allies Melted . | . . . Intel | -11 -10 -10 ------- Run | Yrd Mat Min Robot Analysis Total . | . . . Derelict Logs Recovered . | . . . Drone Launches . | . . . Drone Recoveries . | . . . Exploration | -11 -10 -10 ------------- Run | Yrd Mat Min Turns Passed 1138 | 75 974 89 Spaces Moved 553 | 41 424 88 Core 49 | 3 42 4 Treads 138 | 38 100 . Legs . | . . . Wheels 366 | . 282 84 Hover . | . . . Flight . | . . . Fastest Speed 50 | 50 50 50 Average Speed 118 | 151 119 97 Slowest Speed 200 | 160 200 100 Overloaded Moves . | . . . Propulsion Burnouts . | . . . Robots Hopped . | . . . Cave-ins Triggered . | . . . Exploration Rate (%) 26 | 4 54 20 Regions Visited 2 Branch Regions 1 Pre-discovered Areas . | . . . Known Exits Taken 1 | . 1 . Unknown Exits Taken 1 | 1 . . Scrap Searched 1 | . . 1 Spaces Dug . | . . . Terrain Destroyed 11 | . 11 . Melee . | . . . Projectile 2 | . 2 . AOE 9 | . 9 . Terrain Rammed . | . . . Walls Destroyed . | . . . Machines Disabled . | . . . Actions | -11 -10 -10 --------- Run | Yrd Mat Min Total 939 | 54 796 89 Wait 301 | 3 298 . Move 551 | 40 423 88 Hop . | . . . Pick Up 14 | 6 8 . Fast Attach 4 | . 4 . Attach 8 | 5 3 . Detach . | . . . Swap 4 | . 4 . Drop 4 | . 4 . Fire 53 | . 52 1 Melee . | . . . Ram . | . . . Kick . | . . . Crush . | . . . Escape Stasis . | . . . Rewire . | . . . Trap . | . . . Miscellaneous . | . . . Route ------- -11/Scrapyard -10/Materials (discovered 4 exits: *Mat x2 / *Min x2) -10/Mines History --------- Turn | Location | Event 14 | -11/Scrapyard | Discovered new exit (range 16) 76 | -11/Scrapyard | Entered Materials 112 | -10/Materials | Identified exit to Mines 305 | -10/Materials | Build established: Mutant 313 | -10/Materials | Discovered new exit (range 8) 519 | -10/Materials | Identified exit to Materials 994 | -10/Materials | Discovered exit to Materials (range 7) 1050 | -10/Materials | Entered Mines 1117 | -10/Mines | Assembled infested the area 1134 | -10/Mines | Core integrity fell below 50% 1137 | -10/Mines | Released all parts (7) 1139 | -10/Mines | Core integrity fell below 20% 1139 | -10/Mines | Destroyed by D-53 Grenadier with Mini Grenade Launcher Last Messages --------------- 01076_ Found Grenade Launcher. 01076_ Found 59 Matter. 01077_ Acquired 40 matter. 01081_ K-01 Serf collects debris. 01117_ ALERT: Infestation in the mines, dispatching Demolisher response squad. 01127_ K-01 Serf collects debris. 01132_ C-30 ARC bursts open, deploying its payload. 01132_ D-53 Grenadier unfolds itself. 01137_ Released Imp. Light Cannon. 01137_ Released Com. Wheel. 01137_ Released Lgt. Ion Engine. 01137_ Released Com. Wheel. 01137_ Released Imp. Light Cannon. 01137_ Released Signal Interpreter. 01137_ Released Structural Scanner. 01139_ as-52412 destroyed. 01139_ as-11847 destroyed. 01139_ T-07 Excavator destroyed. Map ----- +----------------------------------------------------+ | ?????????????????????????????????????????????? | | ?????????????????????????????????????????????? | | ?????????????????????????????????????????????? | | ?????????????????????????????????????????????? | | ?????????????????????????????????????????????? | | ?????????????????????????????????????????????? | | ?????????????????????????????????????????????? | | ?????????????????????????????????????????????? | | ?????????????????????????????????????????????? | | ?????????????????????????????????????????????? | | ?????????????????????????????????????????????? | | ?????????????????????????????????????????????? | | ?????????????????????????????????????????????? | | ?####?????????????????????????????#??????????? | | ?####???????????????????????????? #?????????? | | ? ????????????????????????? ? ##????????? | | ??## ????????????????????????? ##???????? | | ??## ######????????????????? a ????????? | | ??## ######????????######### a ??????????? | | ??## %]##????????######## a ???????????? | | ??## ##????????## a a ????????????? | | ??###### ###????##### *a aaa??????????????? | | ??###### ###??##### a ???????????????? | | ???##### ###?#### # ????????????????? | | ???## ###### a% # ????????????????? | | ???## ##### = ]] @ ##????????????????? | | ##### ## ### |% ##????????????????? | | ##### ## %%### = ##????????????????? | | ## ## d ##????????????????? | | #### d ##????????????????? | | ### ###????????????????? | | ##### % ##????????????????? | | ##### ###???????????????? | | ???## #### #######???????????? | | ???### ####### ######???????????? | | ???#### ######### ###??????????? | | ????##### ####???### ## ##??????????? | | ?????#########????## ###### ###??????????? | | ???????######?????## ###########??????????? | | ??????????????????### ###???#####???????????? | | ??????????????????########???????????????????? | | ???????????????????######????????????????????? | | | | | | | | | | | | | | | | | +----------------------------------------------------+ Best States ------------- Heat Dissipation 25 Energy Generation 10 Energy Capacity 125 Matter Stores 300 Matter Capacity 300 Sight Range 16 Terrain Scan Density 10 Weapon Shielding 33 Evasion (%) 40 Recoil Reduction 2 Item Schematics ----------------- None Robot Schematics ------------------ None Fabricated ------------ Nothing Alien Tech Used ----------------- None Achievements -------------- None Challenges ------------ None Game ------ Seed LayeredFlakShotgun Manual? 0 Play Time 00:12:24 Cumulative 57.0 hours Start 2025.03.06 @ 22:03:21 End 2025.03.06 @ 22:14:20 Sessions 1 Manual Loads 0 Difficulty Rogue Special Mode None Game No. 7 Rogue 5 Adventurer 1 Explorer 1 Win Type - Total 3 Types 1/0/2/0/0/0/0/0/0 Lore% 18 Gallery% 30 Achievement% 32 Wizard Run 0 Options --------- Layout 1 ASCII 0 Keyboard 0 Movement Mouse Keybinds 0 Fullscreen 1 Font 32/SmallcapsGlow Map View 25x17 Zoom Use 88% Tactical HUD 1 Map Filters NONE Filters NONE Steam 1 RUN: 3bd0f3df-cf67-4727-8be2-78342dec2abb